bitfinex/quotes_BTCUSD_20251120
["timestamp","ask_amount","ask_price","bid_price","bid_amount"]
[1763634853199,0.02401854,91988.0,91987.0,0.25831202]
[1763634853951,0.02401854,91988.0,91987.0,0.21742202]
[1763634854822,0.02397054,91988.0,91987.0,0.21742202]
[1763634855795,0.01087121,91986.0,91973.0,0.01110456]
[1763634856108,0.21744086,91980.0,91976.0,0.21744672]
[1763634856330,0.02664,91977.0,91975.0,0.21749198]
[1763634856514,0.02664,91977.0,91975.0,4.211e-05]
[1763634856515,0.02033214,91976.0,91975.0,4.211e-05]
[1763634856727,0.02033214,91976.0,91975.0,0.23923753]
[1763634856958,0.02033214,91976.0,91975.0,0.2338625]
[1763634857169,0.02033214,91976.0,91975.0,0.32576971]
[1763634857390,0.02033214,91976.0,91975.0,0.32854468]
[1763634858178,0.02033214,91976.0,91975.0,0.2583825]
[1763634859153,0.02033214,91976.0,91975.0,0.2593825]
[1763634859671,0.00368,91986.0,91984.0,0.21742911]
[1763634859879,0.02033006,91985.0,91984.0,0.21742911]
[1763634860120,0.02033006,91985.0,91982.0,0.22830527]
[1763634860295,0.02033006,91984.0,91983.0,0.21743096]
[1763634860493,0.00368,91986.0,91985.0,0.21742675]
[1763634860928,0.02401042,91986.0,91985.0,0.21742675]
[1763634862589,0.02401042,91986.0,91981.0,0.0121]
[1763634862590,0.03488163,91986.0,91981.0,0.0121]
[1763634862844,0.03488163,91986.0,91973.0,0.21768593]
[1763634862845,0.01087216,91978.0,91973.0,0.21768593]
[1763634863065,0.02033042,91977.0,91974.0,0.22832404]
[1763634863213,0.01151,91976.0,91974.0,0.21745219]
[1763634863596,0.01151,91976.0,91973.0,0.00023181]
[1763634863597,0.04926,91976.0,91973.0,0.00023181]
[1763634863726,0.06960437,91976.0,91973.0,0.00023181]
[1763634863934,0.28705239,91976.0,91973.0,0.00023181]
[1763634864826,0.06960437,91976.0,91973.0,0.00023181]
[1763634865026,0.28705239,91976.0,91973.0,0.00023181]
[1763634866527,0.26670802,91976.0,91973.0,0.00023181]
[1763634868497,0.28708846,91976.0,91973.0,0.00023181]
[1763634870243,0.26670802,91976.0,91973.0,0.00023181]
[1763634874749,0.28709342,91976.0,91973.0,0.00023181]
[1763634875621,0.28709018,91976.0,91973.0,0.00023181]
[1763634875967,0.28809018,91976.0,91973.0,0.00023181]
[1763634876298,0.28909018,91976.0,91973.0,0.00023181]
[1763634884597,0.29277018,91976.0,91973.0,0.00023181]
[1763634886537,0.29276384,91976.0,91973.0,0.00023181]
[1763634888173,0.34486633,91976.0,91973.0,0.00023181]
[1763634888388,0.35505626,91976.0,91973.0,0.00023181]
[1763634889034,0.01087594,91946.0,91941.0,0.328]
[1763634889246,0.01087618,91944.0,91941.0,0.3280644]
[1763634889463,0.01087618,91944.0,91941.0,0.54559471]
[1763634889918,0.22120148,91945.0,91942.0,0.2284035]
[1763634890134,0.00368,91945.0,91944.0,0.21752371]
[1763634890350,0.00368,91945.0,91942.0,0.01087642]
[1763634890572,0.01087618,91944.0,91941.0,0.0050644]
[1763634890805,0.21752607,91943.0,91941.0,0.0050644]
[1763634891017,0.01087618,91944.0,91941.0,0.24434828]
[1763634891018,0.02628,91942.0,91941.0,0.24434828]
[1763634891234,0.02628,91942.0,91941.0,0.0050644]
[1763634891664,0.24380844,91942.0,91941.0,0.0050644]
[1763634892303,0.26753844,91942.0,91941.0,0.0050644]
[1763634892554,0.02628,91942.0,91941.0,0.2225952]
[1763634892760,0.01074,91942.0,91941.0,0.2225952]
[1763634892988,0.01074,91942.0,91941.0,0.0050644]
[1763634892989,0.05001,91942.0,91941.0,0.0050644]
[1763634894064,0.05001,91942.0,91941.0,0.0060644]
[1763634894726,0.05001,91942.0,91941.0,0.0050644]
[1763634895067,0.05001,91942.0,91941.0,0.00599201]
[1763634896352,0.05101,91942.0,91941.0,0.00599201]
[1763634899148,0.07134422,91942.0,91941.0,0.00599201]
[1763634902852,0.28887266,91942.0,91941.0,0.00599201]
[1763634904735,0.22842789,91933.0,91930.0,0.01087784]
[1763634904941,0.22842789,91933.0,91930.0,0.0112985]
[1763634904942,0.00991,91931.0,91930.0,0.0112985]
[1763634905235,0.22746447,91931.0,91930.0,0.00042066]
[1763634905595,0.26818447,91931.0,91930.0,0.00042066]
[1763634906717,0.26818447,91931.0,91930.0,0.21797749]
[1763634906718,0.05063,91931.0,91930.0,0.21797749]
[1763634906979,0.02657,91931.0,91930.0,0.00042066]
[1763634907180,0.24412447,91931.0,91930.0,0.00042066]
[1763634908129,0.26818447,91931.0,91930.0,0.00042066]
[1763634910391,0.28851122,91931.0,91930.0,0.00042066]
[1763634910880,0.28851122,91931.0,91930.0,0.00073962]
[1763634911384,0.00368,91932.0,91930.0,0.00073962]
[1763634911528,0.00368,91932.0,91930.0,0.00042066]
[1763634912377,0.02033196,91931.0,91930.0,0.00042066]
[1763634913294,0.02033196,91931.0,91930.0,0.21797749]
[1763634915514,0.02033196,91931.0,91930.0,0.00042066]
[1763634915892,0.02033196,91931.0,91930.0,0.21797749]
[1763634916401,0.27860643,91931.0,91930.0,0.00042066]
[1763634916615,0.25454643,91931.0,91930.0,0.00042066]
[1763634918885,0.02033196,91931.0,91930.0,0.21797749]
[1763634919032,0.02033196,91931.0,91930.0,0.00042066]
[1763634919383,0.23788643,91931.0,91930.0,0.00073962]
[1763634921146,0.21756112,91929.0,91927.0,0.02175639]
[1763634921291,0.02033196,91928.0,91927.0,0.02175639]
[1763634921488,0.23789359,91928.0,91926.0,0.22844444]
[1763634921694,0.02033196,91927.0,91926.0,0.22844444]
[1763634921890,0.21757062,91925.0,91922.0,0.00023201]
[1763634922099,0.02033196,91924.0,91922.0,0.21780771]
[1763634922300,0.22844651,91926.0,91923.0,0.217573]
[1763634922502,0.02040473,91925.0,91923.0,0.217573]
[1763634922724,0.2288598,91929.0,91923.0,0.217573]
[1763634922725,0.02040473,91924.0,91923.0,0.217573]
[1763634923158,0.02040473,91924.0,91923.0,0.234043]
[1763634924621,0.02040473,91924.0,91923.0,0.258533]
[1763634925444,0.02040473,91924.0,91923.0,0.234043]
[1763634926813,0.02040473,91924.0,91923.0,0.258533]
[1763634928094,0.02040473,91924.0,91923.0,0.35412106]
[1763634928396,0.00042072,91929.0,91928.0,0.21756156]
[1763634928597,0.02084231,91929.0,91928.0,0.23369156]
[1763634928837,0.02084231,91929.0,91928.0,0.25761156]
[1763634930841,0.0293137,91960.0,91928.0,0.58429156]
[1763634931020,0.01137,91969.0,91959.0,0.00884]
[1763634931257,0.00368,91968.0,91960.0,0.01087429]
[1763634931461,0.02651,91968.0,91964.0,0.01087382]
[1763634931811,0.01593,91965.0,91960.0,0.22835933]
[1763634932031,0.01593,91965.0,91963.0,0.21747876]
[1763634932228,0.03973,91965.0,91964.0,0.2174764]
[1763634932839,0.00368,91968.0,91967.0,0.2174693]
[1763634933039,0.01909,91968.0,91967.0,0.2174693]
[1763634933593,0.04289,91968.0,91967.0,0.2174693]
[1763634934123,0.04289,91968.0,91952.0,0.00884]
[1763634934302,0.04289,91968.0,91940.0,0.45057068]
[1763634934303,0.01145,91959.0,91957.0,0.21749098]
[1763634934731,0.03921,91958.0,91957.0,0.21749098]
[1763634935130,0.03921,91958.0,91956.0,0.01087476]
[1763634935337,0.03921,91958.0,91956.0,0.22836853]
[1763634936230,0.03921,91958.0,91956.0,0.22936853]
[1763634936393,0.01541,91958.0,91956.0,0.22936853]
[1763634937495,0.01145,91959.0,91956.0,0.22936853]
[1763634937496,0.03921,91957.0,91956.0,0.22936853]
[1763634938097,0.01541,91957.0,91956.0,0.22936853]
[1763634938351,0.01145,91959.0,91958.0,0.21749059]
[1763634938749,0.05066,91959.0,91958.0,0.21749059]
[1763634940478,0.05066,91959.0,91947.0,0.01087583]
[1763634940479,0.01087464,91957.0,91947.0,0.01087583]
[1763634940624,0.03388571,91948.0,91936.0,0.01971713]
[1763634940839,0.01137,91945.0,91942.0,0.22840464]
[1763634941038,0.01137,91945.0,91943.0,0.21752431]
[1763634941237,0.01137,91945.0,91942.0,0.22840213]
[1763634941238,0.01541,91943.0,91942.0,0.22840213]
[1763634941710,0.03921,91943.0,91942.0,0.22840213]
[1763634941921,0.03921,91943.0,91931.0,0.02904016]
[1763634942203,0.03921,91942.0,91936.0,0.01087713]
[1763634942405,0.03921,91942.0,91940.0,0.21753238]
[1763634942821,0.03921,91941.0,91940.0,0.21753238]
[1763634943249,0.03921,91941.0,91939.0,0.01087677]
[1763634943467,0.03921,91941.0,91937.0,0.2175397]
[1763634943468,0.03921,91940.0,91937.0,0.21753854]
[1763634943682,0.01541,91939.0,91938.0,0.2175376]
[1763634944124,0.01541,91939.0,91938.0,7.34e-05]
[1763634944329,0.01541,91939.0,91938.0,0.2176113]
[1763634945865,0.00368,91945.0,91944.0,0.21752371]
[1763634947690,0.00368,91945.0,91943.0,0.21752607]
[1763634948499,0.00368,91945.0,91944.0,0.21752371]
[1763634948716,0.03525,91959.0,91956.0,0.21749494]
[1763634948933,0.03525,91959.0,91957.0,0.21749295]
[1763634948934,0.00368,91958.0,91957.0,0.21749295]
[1763634949142,0.00368,91958.0,91957.0,0.23848689]
[1763634949354,0.01909,91958.0,91956.0,0.01087476]
[1763634949561,0.01909,91958.0,91957.0,0.21749295]
[1763634950125,0.01909,91958.0,91956.0,0.22836789]
[1763634950573,0.01909,91958.0,91957.0,0.21749295]
[1763634952058,0.01909,91958.0,91954.0,0.21749801]
[1763634952059,0.01087464,91957.0,91954.0,0.21749992]
[1763634952270,0.24377772,91957.0,91954.0,0.21750005]
[1763634952659,0.01541,91955.0,91954.0,0.21750005]
[1763634952811,0.23290818,91955.0,91953.0,0.01087512]
[1763634953003,0.23290818,91955.0,91950.0,0.22838397]
[1763634953004,0.23291005,91954.0,91950.0,0.22838397]
[1763634953236,0.050085,91954.0,91947.0,0.01087583]
[1763634953417,0.03921,91954.0,91952.0,0.21750478]
[1763634953575,0.03921,91954.0,91953.0,0.21750241]
[1763634954002,0.01541,91954.0,91953.0,0.21750241]
[1763634955338,0.026285,91954.0,91950.0,0.01087547]
[1763634955498,0.22838223,91952.0,91948.0,0.22838887]
[1763634955697,0.21750981,91950.0,91948.0,0.22838984]
[1763634955896,0.21750971,91950.0,91948.0,0.01087571]
[1763634956163,0.23292236,91949.0,91945.0,0.22839625]
[1763634956288,0.23292236,91949.0,91946.0,0.01087594]
[1763634956289,0.03921,91949.0,91946.0,0.01087594]
[1763634956494,0.03921,91949.0,91946.0,0.22839355]
[1763634956742,0.03921,91949.0,91946.0,0.01087594]
[1763634956743,0.01541,91949.0,91946.0,0.01087594]
[1763634956886,0.01541,91949.0,91947.0,0.21751509]
[1763634957346,0.23292203,91949.0,91947.0,0.21751509]
[1763634957898,0.23292203,91949.0,91945.0,0.22839716]
[1763634957899,0.24379762,91949.0,91945.0,0.22839716]
[1763634958202,0.22839027,91948.0,91944.0,0.03994233]
[1763634958373,0.01087583,91947.0,91944.0,0.02906615]
[1763634958591,0.0238,91947.0,91946.0,0.21751773]
[1763634958787,0.01541,91945.0,91944.0,0.01087618]
[1763634958963,0.03921,91945.0,91944.0,0.22839923]
[1763634959144,0.01541,91945.0,91944.0,0.22839923]
[1763634960404,0.01541,91945.0,91943.0,0.02906615]
[1763634960602,0.01541,91945.0,91943.0,0.2465903]
[1763634960927,0.21751459,91948.0,91945.0,0.01087606]
[1763634961175,0.2521903,91948.0,91945.0,0.01087606]
[1763634961384,0.2521903,91948.0,91945.0,0.22839696]
[1763634961601,0.00368,91947.0,91945.0,0.22839696]
[1763634961830,0.21752371,91944.0,91943.0,0.001]
[1763634962061,0.21752371,91944.0,91932.0,0.27572415]
[1763634962062,0.05210249,91940.0,91928.0,0.02906615]
[1763634962285,0.05210249,91940.0,91916.0,0.02906615]
[1763634962286,0.21757103,91924.0,91916.0,0.02906615]
[1763634962462,0.00368,91923.0,91922.0,0.00031474]
[1763634962631,0.04201,91923.0,91922.0,0.00031474]
[1763634965533,0.06236077,91923.0,91922.0,0.00031474]
[1763634966028,0.2175714,91927.0,91922.0,0.00031474]
[1763634966029,0.01145,91943.0,91939.0,0.01087677]
[1763634966240,0.00368,91949.0,91942.0,0.24284757]
[1763634966451,0.00368,91949.0,91943.0,0.01645]
[1763634966667,0.00368,91949.0,91943.0,0.04127]
[1763634967238,0.00368,91949.0,91943.0,0.01645]
[1763634967679,0.00368,91949.0,91943.0,0.04127]
[1763634968090,0.00368,91949.0,91943.0,0.01645]
[1763634970457,0.00368,91949.0,91942.0,0.22639757]
[1763634971020,0.00368,91949.0,91942.0,0.21752757]
[1763634971222,0.01511,91943.0,91942.0,0.21752757]
[1763634972533,0.0025,91944.0,91942.0,0.21752757]
[1763634972720,0.0025,91944.0,91943.0,0.01645]
[1763634974558,0.0025,91944.0,91943.0,0.08179359]
[1763634974757,0.0025,91944.0,91943.0,0.10661359]
[1763634974958,0.0025,91944.0,91943.0,0.04127]
[1763634976177,0.0025,91944.0,91943.0,0.01645]
[1763634976372,0.0025,91944.0,91943.0,0.04127]
[1763634977209,0.0025,91944.0,91943.0,0.04227]
[1763634977401,0.0025,91944.0,91943.0,0.0392026]
[1763634977589,0.0025,91944.0,91943.0,0.0480726]
[1763634977753,0.0025,91944.0,91943.0,0.0728926]
[1763634977956,0.0025,91944.0,91943.0,0.001]
[1763634980190,0.0025,91944.0,91943.0,0.0227526]
[1763634980397,0.0025,91944.0,91943.0,0.0217526]
[1763634980794,0.0025,91944.0,91942.0,0.21752757]
[1763634981203,0.01511,91943.0,91935.0,0.03793615]
[1763634981399,0.01192,91937.0,91934.0,0.01087736]
[1763634981687,0.0025,91944.0,91937.0,0.01087701]
[1763634981942,0.0025,91944.0,91943.0,0.24284607]
[1763634982522,0.0025,91944.0,91943.0,0.02532]
[1763634982728,0.0025,91944.0,91933.0,0.02906615]
[1763634982729,0.01087654,91941.0,91933.0,0.02906615]
[1763634982932,0.02598736,91934.0,91926.0,0.02906615]
[1763634983129,0.02598736,91934.0,91923.0,0.2284497]
[1763634983130,0.00368,91933.0,91923.0,0.2284497]
[1763634983330,0.00368,91933.0,91927.0,0.01087819]
[1763634983529,0.01087784,91930.0,91927.0,0.02175639]
[1763634983741,0.21756156,91928.0,91927.0,0.02175639]
[1763634984061,0.01192,91929.0,91925.0,0.01087843]
[1763634984270,0.21756169,91928.0,91925.0,0.22844272]
[1763634984450,0.01192,91929.0,91927.0,0.21856191]
[1763634984861,0.01192,91929.0,91928.0,0.21756156]
[1763634985070,0.00368,91933.0,91930.0,0.22843415]
[1763634985303,0.01511,91929.0,91926.0,0.01087831]
[1763634985424,0.01511,91929.0,91928.0,0.21756156]
[1763634985815,0.00368,91933.0,91932.0,0.2175521]
[1763634986019,0.00368,91933.0,91921.0,0.0197189]
[1763634986226,0.01087784,91930.0,91927.0,0.21856372]
[1763634986403,0.22843474,91930.0,91927.0,0.01087819]
[1763634986720,0.01087819,91927.0,91924.0,0.22844722]
[1763634986893,0.22844047,91928.0,91925.0,0.22844697]
[1763634987107,0.22785148,91928.0,91925.0,0.22844697]
[1763634987269,0.21755501,91931.0,91928.0,0.21755943]
[1763634987510,0.21755683,91930.0,91929.0,0.02175592]
[1763634987714,0.21755683,91930.0,91927.0,0.01087819]
[1763634988311,0.21755683,91930.0,91926.0,0.06617609]
[1763634988527,0.21755683,91930.0,91927.0,0.21756278]
[1763634988752,0.00368,91933.0,91932.0,0.2175521]
[1763634988957,0.00368,91933.0,91932.0,0.2264221]
[1763634989827,0.00368,91933.0,91932.0,0.2175521]
[1763634990204,0.00368,91933.0,91928.0,0.22843963]
[1763634990205,0.22122973,91933.0,91928.0,0.22843963]
[1763634990406,0.00368,91933.0,91929.0,0.01087796]
[1763634990604,0.00368,91933.0,91930.0,0.03263352]
[1763634990809,0.01455748,91933.0,91930.0,0.02175568]
[1763634991174,0.00368,91933.0,91930.0,0.03263352]
[1763634991352,0.00368,91933.0,91930.0,0.25018585]
[1763634991590,0.00368,91933.0,91931.0,0.21755438]
[1763634991793,0.01455748,91933.0,91932.0,0.02175521]
[1763634991979,0.00368,91933.0,91931.0,0.21755447]
[1763634992213,0.00368,91933.0,91932.0,0.02175521]
[1763634992822,0.00368,91933.0,91932.0,0.23930731]
[1763634993033,0.00368,91933.0,91932.0,0.2175521]
[1763634993240,0.00368,91933.0,91932.0,0.23930731]
[1763634994081,0.00368,91933.0,91932.0,0.2175521]
[1763634994292,0.0108776,91932.0,91928.0,0.22843958]
[1763634994473,0.00368,91933.0,91931.0,0.21755243]
[1763634994628,0.00368,91933.0,91930.0,0.01087784]
[1763634994629,0.00368,91933.0,91932.0,0.02175521]
[1763634994840,0.0108776,91932.0,91929.0,0.03263388]
[1763634995455,0.00368,91933.0,91930.0,0.22843247]
[1763634995663,0.2175521,91932.0,91931.0,0.02175544]
[1763634995907,0.00368,91933.0,91930.0,0.21755463]
[1763634996063,0.00368,91933.0,91931.0,0.23930901]
[1763634996269,0.00368,91933.0,91931.0,0.21755357]
[1763634996494,0.00368,91933.0,91932.0,0.2175521]
[1763634997128,0.22122973,91933.0,91930.0,0.22843412]
[1763634997337,0.22122973,91933.0,91930.0,0.01087784]
[1763634997538,0.23210721,91933.0,91929.0,0.21755907]
[1763634997755,0.22843181,91932.0,91929.0,0.21755907]
[1763634998290,0.22843495,91930.0,91927.0,0.00887]
[1763634998498,0.22843495,91930.0,91910.0,1.11447842]
[1763634998499,0.2175734,91923.0,91916.0,0.02911298]
[1763634998709,0.2175734,91923.0,91910.0,0.0004]
[1763634998710,0.2576834,91923.0,91910.0,0.0004]
[1763634999276,0.2576834,91923.0,91910.0,0.0112802]
[1763634999480,0.2576834,91923.0,91911.0,0.01088009]
[1763635000014,0.2576834,91923.0,91911.0,0.02176018]
[1763635000364,0.2576834,91923.0,91910.0,0.0004]
[1763635000565,0.2576834,91923.0,91912.0,0.22847914]
[1763635000798,0.2576834,91923.0,91911.0,0.01088009]
[1763635001004,0.2576834,91923.0,91913.0,0.01087985]
[1763635001157,0.2576834,91923.0,91914.0,0.22847324]
[1763635001387,0.2576834,91923.0,91913.0,0.01087985]
[1763635001583,0.2576834,91923.0,91916.0,0.01087949]
[1763635001845,0.2576834,91923.0,91911.0,0.01088009]
[1763635001988,0.2576834,91923.0,91912.0,0.01087997]
[1763635002197,0.2576834,91923.0,91912.0,0.02175994]
[1763635002557,0.2576834,91923.0,91910.0,0.0004]
[1763635003158,0.27804378,91923.0,91910.0,0.0004]
[1763635004753,0.33014627,91923.0,91910.0,0.0004]
[1763635005005,0.33114627,91923.0,91910.0,0.0004]
[1763635005748,0.33214627,91923.0,91910.0,0.0004]
[1763635005952,0.28004378,91923.0,91910.0,0.0004]
[1763635006154,0.28372378,91923.0,91912.0,0.21759855]
[1763635006354,0.28372378,91923.0,91912.0,0.01087997]
[1763635006578,0.2633634,91923.0,91914.0,0.01087973]
[1763635006783,0.2633634,91923.0,91916.0,0.22846866]
[1763635006986,0.04579,91923.0,91916.0,0.21758972]
[1763635007193,0.04579,91923.0,91911.0,0.23735097]
[1763635007365,0.28370629,91923.0,91915.0,0.01087961]
[1763635007595,0.28370629,91923.0,91918.0,0.01087926]
[1763635007596,0.28270629,91923.0,91918.0,0.01087926]
[1763635007995,0.2623634,91923.0,91917.0,0.22846657]
[1763635008209,0.2623634,91923.0,91839.0,0.19449698]
[1763635008210,0.28370618,91923.0,91909.0,0.01088032]
[1763635008423,0.28370618,91923.0,91897.0,0.01088174]
[1763635008424,0.33580867,91923.0,91897.0,0.01088174]
[1763635008768,0.33580867,91923.0,91892.0,0.00887]
[1763635008769,0.33580867,91923.0,91900.0,0.0004]
[1763635009170,0.33580867,91923.0,91901.0,0.01088127]
[1763635009710,0.33580867,91923.0,91900.0,0.01128139]
[1763635010123,0.33580867,91923.0,91904.0,0.22849924]
[1763635010322,0.33580867,91923.0,91902.0,0.01088115]
[1763635010527,0.33580867,91923.0,91901.0,0.01088127]
[1763635010764,0.33580867,91923.0,91900.0,0.0004]
[1763635011561,0.33580867,91923.0,91900.0,0.02183161]
[1763635011864,0.33580867,91923.0,91902.0,0.01088115]
[1763635012253,0.33580867,91923.0,91903.0,0.01088103]
[1763635012672,0.33580867,91923.0,91900.0,0.0004]
[1763635014075,0.33580867,91923.0,91902.0,0.01088115]
[1763635014294,0.33580867,91923.0,91900.0,0.0004]
[1763635015065,0.66898537,91923.0,91900.0,0.0004]
[1763635016097,0.66798537,91923.0,91900.0,0.0004]
[1763635016732,0.66698537,91923.0,91900.0,0.0004]
[1763635017168,0.66798537,91923.0,91900.0,0.0004]
[1763635017983,0.66898537,91923.0,91900.0,0.0004]
[1763635018183,0.66898293,91923.0,91900.0,0.0004]
[1763635020917,0.66898309,91923.0,91900.0,0.0004]
[1763635021895,0.66898309,91923.0,91901.0,0.01088127]
[1763635021896,0.6168806,91923.0,91901.0,0.01088127]
[1763635022101,0.2938806,91923.0,91907.0,0.22849183]
[1763635022270,0.28370618,91923.0,91909.0,0.01088032]
[1763635022571,0.28270618,91923.0,91910.0,0.0112802]
[1763635022728,0.28270618,91923.0,91910.0,0.0004]
[1763635022729,0.28370618,91923.0,91910.0,0.0004]
[1763635023497,0.28270618,91923.0,91910.0,0.0004]
[1763635023840,0.28370618,91923.0,91910.0,0.0004]
[1763635024439,0.28270618,91923.0,91910.0,0.0004]
[1763635024661,0.28270618,91923.0,91910.0,0.0112802]
[1763635024871,0.28370618,91923.0,91910.0,0.22888392]
[1763635025076,0.28370618,91923.0,91910.0,0.0004]
[1763635025945,0.28334618,91923.0,91910.0,0.0112802]
[1763635026145,0.28334618,91923.0,91910.0,0.22888398]
[1763635026370,0.28334618,91923.0,91910.0,0.0004]
[1763635027401,0.29353793,91923.0,91910.0,0.0004]
[1763635029042,0.22850411,91903.0,91899.0,0.06207921]
[1763635029215,0.22850411,91903.0,91899.0,0.06249993]
[1763635029423,0.2176258,91901.0,91899.0,0.00042072]
[1763635029605,0.21762785,91900.0,91899.0,0.00042072]
[1763635031452,0.25737785,91900.0,91899.0,0.00042072]
[1763635031662,0.23428785,91900.0,91899.0,0.00042072]
[1763635031860,0.01666,91900.0,91899.0,0.00108793]
[1763635032063,0.21762785,91900.0,91899.0,0.00108793]
[1763635032890,0.0227708,91905.0,91899.0,0.21871795]
[1763635033089,0.21762612,91901.0,91899.0,0.00042072]
[1763635033486,0.21762785,91900.0,91899.0,0.00042072]
[1763635033940,0.21762612,91901.0,91899.0,0.00108793]
[1763635034136,0.21762785,91900.0,91899.0,0.00042072]
[1763635034584,0.01088091,91904.0,91901.0,0.01088127]
[1763635034782,0.03128844,91903.0,91899.0,0.00042072]
[1763635034970,0.21762354,91902.0,91899.0,0.00042072]
[1763635035164,0.01189,91905.0,91901.0,0.01088127]
[1763635035484,0.02040744,91904.0,91902.0,0.22850195]
[1763635035752,0.00368,91909.0,91906.0,0.01088068]
[1763635035985,0.02040735,91908.0,91906.0,0.01088068]
[1763635036232,0.02040735,91907.0,91906.0,0.22849204]
[1763635036852,0.02040735,91907.0,91904.0,0.01088091]
[1763635037273,0.01456032,91909.0,91904.0,0.01088091]
[1763635037274,0.01456032,91909.0,91907.0,0.21761094]
[1763635037604,0.25525897,91909.0,91906.0,0.01088068]
[1763635037827,0.22849172,91908.0,91904.0,0.01088091]
[1763635038042,0.22849172,91908.0,91905.0,0.21761533]
[1763635038449,0.22849172,91908.0,91904.0,0.22849911]
[1763635038864,0.01088103,91903.0,91895.0,0.22852007]
[1763635039066,0.21761601,91905.0,91902.0,0.2176215]
[1763635039265,0.21761601,91905.0,91903.0,0.02176207]
[1763635039468,0.22849489,91906.0,91903.0,0.02176207]
[1763635039695,0.01088068,91906.0,91901.0,0.01088127]
[1763635039915,0.21761923,91904.0,91902.0,0.02176231]
[1763635040325,0.21761923,91904.0,91903.0,0.00055115]
[1763635040903,0.2380302,91904.0,91903.0,0.00055115]
[1763635041250,0.22849913,91905.0,91903.0,0.00055115]
[1763635041457,0.21761899,91904.0,91902.0,0.23938494]
[1763635041669,0.01088044,91908.0,91902.0,0.01088115]
[1763635041877,0.01456032,91909.0,91906.0,0.21761226]
[1763635042318,0.25525774,91909.0,91906.0,0.21761226]
[1763635042526,0.21760937,91908.0,91906.0,0.21761226]
[1763635042731,0.02041013,91907.0,91905.0,0.22849665]
[1763635042936,0.00368,91909.0,91907.0,0.21761128]
[1763635043096,0.02041055,91908.0,91907.0,0.21761128]
[1763635043700,0.02041055,91908.0,91907.0,0.3524159]
[1763635043925,0.00368,91917.0,91915.0,0.21759151]
[1763635044080,0.00368,91917.0,91916.0,0.21758997]
[1763635044285,0.02408808,91917.0,91916.0,0.21758997]
[1763635044506,0.02408808,91917.0,91912.0,0.01087997]
[1763635044702,0.22126767,91917.0,91914.0,0.2175947]
[1763635044912,0.00368,91917.0,91914.0,0.01087973]
[1763635045117,0.21759712,91913.0,91911.0,0.00886]
[1763635045413,0.01555938,91917.0,91914.0,0.01087973]
[1763635045615,0.00468,91917.0,91915.0,0.21759186]
[1763635045796,0.00468,91917.0,91914.0,0.01087973]
[1763635045998,0.21759054,91916.0,91914.0,0.22847434]
[1763635046192,0.2175902,91916.0,91914.0,0.01087973]
[1763635046389,0.21759234,91915.0,91912.0,0.22847838]
[1763635046568,0.22846969,91916.0,91913.0,0.21759701]
[1763635046775,0.22847061,91916.0,91913.0,0.21759701]
[1763635047955,0.22946995,91916.0,91913.0,0.22847686]
[1763635048508,0.001,91916.0,91915.0,0.23412234]
[1763635048720,0.001,91916.0,91915.0,0.25902234]
[1763635049471,0.001,91916.0,91915.0,0.28824822]
[1763635049873,0.00368,91925.0,91924.0,0.21757103]
[1763635051164,0.00368,91925.0,91922.0,0.01974878]
[1763635051361,0.00468,91925.0,91922.0,0.01974878]
[1763635051563,0.00468,91925.0,91924.0,0.21757103]
[1763635052217,0.00468,91925.0,91922.0,0.01974878]
[1763635052580,0.00468,91925.0,91923.0,0.21757251]
[1763635052803,0.00468,91925.0,91924.0,0.21757103]
[1763635053008,0.00368,91925.0,91923.0,0.21757251]
[1763635053248,0.00468,91925.0,91923.0,0.21757251]
[1763635053603,0.00468,91925.0,91924.0,0.21757103]
[1763635053804,0.00368,91925.0,91923.0,0.21757251]
[1763635054026,0.00468,91925.0,91924.0,0.21757103]
[1763635054686,0.00368,91925.0,91924.0,0.21757103]
[1763635054898,0.00368,91925.0,91922.0,0.22644464]
[1763635055094,0.00368,91925.0,91922.0,0.21757464]
[1763635055095,0.23212844,91925.0,91922.0,0.21757464]
[1763635055305,0.23212844,91925.0,91922.0,0.21757518]
[1763635055541,0.00368,91925.0,91923.0,0.21757273]
[1763635055742,0.00368,91925.0,91920.0,0.01087902]
[1763635055743,0.22124927,91925.0,91920.0,0.01087902]
[1763635055961,0.22125052,91925.0,91922.0,0.21757359]
[1763635056162,0.22225052,91925.0,91922.0,0.21757359]
[1763635056390,0.00468,91925.0,91924.0,0.21757103]
[1763635056602,0.00368,91925.0,91924.0,0.21757103]
[1763635056763,0.00468,91925.0,91918.0,0.00887]
[1763635056963,0.01227,91919.0,91914.0,0.00023203]
[1763635057168,0.24642234,91915.0,91914.0,0.00023203]
[1763635057685,0.02883,91915.0,91914.0,0.00023203]
[1763635057934,0.27123234,91915.0,91914.0,0.00023203]
[1763635058149,0.24642234,91915.0,91914.0,0.00023203]
[1763635060353,0.27123234,91915.0,91914.0,0.00023203]
[1763635065287,0.05364,91915.0,91914.0,0.00023203]
[1763635065453,0.27123234,91915.0,91914.0,0.00023203]
[1763635065632,0.29162202,91915.0,91914.0,0.00023203]
[1763635069533,0.29262202,91915.0,91914.0,0.00023203]
[1763635073311,0.29262271,91915.0,91914.0,0.00023203]
[1763635073895,0.29630271,91915.0,91914.0,0.00023203]
[1763635075040,0.3484052,91915.0,91914.0,0.00023203]
[1763635075246,0.35176311,91915.0,91914.0,0.00023203]
[1763635075488,0.35276311,91915.0,91914.0,0.00023203]
[1763635075703,0.40838911,91915.0,91914.0,0.00023203]
[1763635076083,0.40638911,91915.0,91914.0,0.00023203]
[1763635076294,0.40738911,91915.0,91914.0,0.00023203]
[1763635076496,0.40838911,91915.0,91914.0,0.00023203]
[1763635077152,0.40837994,91915.0,91914.0,0.00023203]
[1763635077852,0.40837583,91915.0,91914.0,0.00023203]
[1763635078002,0.40737583,91915.0,91914.0,0.00023203]
[1763635078202,0.40637583,91915.0,91914.0,0.00023203]
[1763635078614,0.40837583,91915.0,91914.0,0.00023203]
[1763635080903,0.29796734,91915.0,91914.0,0.00023203]
[1763635081110,0.02605709,91915.0,91914.0,0.00023203]
[1763635081310,0.24364943,91915.0,91914.0,0.00023203]
[1763635081512,0.02605709,91915.0,91914.0,0.00023203]
[1763635081993,0.28301943,91915.0,91914.0,0.00023203]
[1763635082397,0.28401943,91915.0,91914.0,0.00023203]
[1763635083640,0.28301943,91915.0,91914.0,0.00023203]
[1763635083885,0.28401943,91915.0,91914.0,0.00023203]
[1763635084461,0.28302458,91915.0,91914.0,0.00023203]
[1763635084679,0.29521659,91915.0,91914.0,0.00023203]
[1763635085073,0.29421659,91915.0,91914.0,0.00023203]
[1763635085272,0.66931908,91915.0,91914.0,0.00023203]
[1763635085554,0.21762785,91900.0,91899.0,0.00042072]
[1763635085736,0.33328258,91900.0,91899.0,0.00042072]
[1763635086082,0.31290034,91900.0,91899.0,0.00085588]